bitfinex-derivatives/quotes_BTCF0:USTF0_20250930
["timestamp","ask_amount","ask_price","bid_price","bid_amount"]
[1759210401204,0.55479553,114000.0,113990.0,0.1222741]
[1759210401408,0.42320353,114000.0,113990.0,0.1222741]
[1759210401707,0.69752168,114000.0,113990.0,0.1222741]
[1759210401909,0.68487168,114000.0,113990.0,0.1222741]
[1759210402410,0.68487168,114000.0,113990.0,0.39659225]
[1759210402909,0.006,114000.0,113990.0,0.79659225]
[1759210403297,0.28031815,114000.0,113990.0,0.79659225]
[1759210403503,0.30134815,114000.0,113990.0,0.79659225]
[1759210403699,0.30134815,114000.0,113990.0,1.59467225]
[1759210405412,0.006,114000.0,113990.0,1.59467225]
[1759210406111,0.006,114000.0,113990.0,1.3203541]
[1759210406311,0.006,114000.0,113990.0,1.59467225]
[1759210406506,0.28031815,114000.0,113990.0,1.65779656]
[1759210406707,0.28031815,114000.0,113990.0,1.59467225]
[1759210406908,0.006,114000.0,113990.0,1.59467225]
[1759210407107,0.28031815,114000.0,113990.0,1.59467225]
[1759210408814,0.006,114000.0,113990.0,1.59467225]
[1759210409009,0.30134815,114000.0,113990.0,1.59463225]
[1759210409215,0.28031815,114000.0,113990.0,1.59463225]
[1759210410019,0.30134815,114000.0,113990.0,0.79659225]
[1759210410315,0.30134815,114000.0,113990.0,1.59727225]
[1759210412018,0.30134815,114000.0,113990.0,1.66039656]
[1759210412714,0.30134815,114000.0,113990.0,1.59727225]
[1759210412916,0.28031815,114000.0,113990.0,1.59727225]
[1759210413218,0.28031815,114000.0,113990.0,1.66039656]
[1759210414216,0.28031815,114000.0,113990.0,0.85971656]
[1759210414416,0.30134815,114000.0,113990.0,1.66067656]
[1759210414910,0.30134815,114000.0,113990.0,0.85971656]
[1759210415113,0.30134815,114000.0,113990.0,1.59751225]
[1759210415717,0.02703,114000.0,113990.0,1.59751225]
[1759210415917,0.30134815,114000.0,113990.0,1.59751225]
[1759210417521,0.02703,114000.0,113990.0,1.59751225]
[1759210417722,0.30134815,114000.0,113990.0,1.59751225]
[1759210418224,0.30134815,114000.0,113990.0,0.79659225]
[1759210418519,0.30134815,114000.0,113990.0,1.59735225]
[1759210419419,0.30134815,114000.0,113990.0,0.39659225]
[1759210419620,0.30134815,114000.0,113990.0,1.19719225]
[1759210420412,0.30134815,114000.0,113990.0,0.39659225]
[1759210420614,0.38901455,114000.0,113990.0,0.39659225]
[1759210420814,0.38901455,114000.0,113990.0,1.19699225]
[1759210421113,0.38901455,114000.0,113990.0,0.39659225]
[1759210421316,0.38901455,114000.0,113990.0,1.19691225]
[1759210421720,0.30134815,114000.0,113990.0,1.19691225]
[1759210422218,0.30134815,114000.0,113990.0,0.39659225]
[1759210422419,0.30134815,114000.0,113990.0,1.19691225]
[1759210424525,0.02703,114000.0,113990.0,1.19691225]
[1759210424824,0.30134815,114000.0,113990.0,1.19691225]
[1759210425223,0.02703,114000.0,113990.0,1.19691225]
[1759210425425,0.30134815,114000.0,113990.0,1.19691225]
[1759210426423,0.02703,114000.0,113990.0,1.19691225]
[1759210426625,0.30134815,114000.0,113990.0,1.19691225]
[1759210427526,0.30134815,114000.0,113990.0,1.26003656]
[1759210427721,0.02703,114000.0,113990.0,1.26003656]
[1759210427924,0.30134815,114000.0,113990.0,1.26003656]
[1759210430026,0.02703,114000.0,113990.0,1.26003656]
[1759210430324,0.07128402,114010.0,114000.0,0.1234264]
[1759210430641,0.3608,114020.0,114010.0,0.1234187]
[1759210430824,0.3608,114020.0,114010.0,1.26086716]
[1759210431019,0.3608,114020.0,114010.0,0.46086716]
[1759210431223,0.38397,114020.0,114010.0,0.46086716]
[1759210431419,0.65828815,114020.0,114010.0,1.26082716]
[1759210432224,0.39597,114020.0,114010.0,1.26082716]
[1759210432424,0.41397,114020.0,114010.0,1.26382716]
[1759210432623,0.68828815,114020.0,114010.0,1.20069685]
[1759210432931,0.68828815,114020.0,114010.0,0.40073685]
[1759210433131,0.68828815,114020.0,114010.0,1.20109685]
[1759210434230,0.68828815,114020.0,114010.0,1.20096641]
[1759210434231,0.05317,114020.0,114010.0,1.20096641]
[1759210435126,0.03,114020.0,114010.0,1.20096641]
[1759210436936,0.38397,114030.0,114020.0,0.123411]
[1759210437235,0.38397,114030.0,114020.0,0.39759871]
[1759210438135,0.38397,114030.0,114020.0,1.19779871]
[1759210438539,0.4716133,114030.0,114020.0,1.19779871]
[1759210438735,0.4716133,114030.0,114020.0,0.123411]
[1759210438934,0.4856133,114030.0,114020.0,0.926651]
[1759210439133,0.75980101,114030.0,114020.0,0.926651]
[1759210439730,0.74580101,114030.0,114020.0,0.923651]
[1759210439928,0.76280101,114030.0,114020.0,0.930651]
[1759210440324,0.76280101,114030.0,114020.0,0.130411]
[1759210440524,0.76280101,114030.0,114020.0,0.930611]
[1759210441324,0.67515771,114030.0,114020.0,0.930611]
[1759210441529,0.76280101,114030.0,114020.0,0.930611]
[1759210441725,0.76280101,114030.0,114020.0,0.930571]
[1759210441925,0.76280101,114030.0,114020.0,0.930491]
[1759210442132,0.4886133,114030.0,114020.0,0.930491]
[1759210442637,0.76280101,114030.0,114020.0,0.930491]
[1759210449740,0.4886133,114030.0,114020.0,0.930491]
[1759210449936,0.76280101,114030.0,114020.0,0.930491]
[1759210454343,0.67515771,114030.0,114020.0,0.930491]
[1759210454645,0.76280101,114030.0,114020.0,0.930491]
[1759210458345,0.4886133,114030.0,114020.0,0.930491]
[1759210458548,0.76280101,114030.0,114020.0,0.930491]
[1759210462652,0.76280101,114030.0,114020.0,0.99362131]
[1759210464453,0.67515771,114030.0,114020.0,0.99362131]
[1759210464652,0.40097,114030.0,114020.0,0.99362131]
[1759210464951,0.67515771,114030.0,114020.0,0.99362131]
[1759210465848,0.40097,114030.0,114020.0,0.99362131]
[1759210466455,0.4886134,114030.0,114020.0,0.99362131]
[1759210467856,0.4886134,114030.0,114020.0,0.930491]
[1759210468757,0.76280111,114030.0,114020.0,0.930491]
[1759210469751,0.77632111,114030.0,114020.0,0.116751]
[1759210470552,0.79751441,114030.0,114020.0,0.116751]
[1759210472060,0.77632111,114030.0,114020.0,0.116751]
[1759210475467,0.79751207,114030.0,114020.0,0.116751]
[1759210475964,0.79751207,114030.0,114020.0,0.0291]
[1759210477163,0.79751207,114030.0,114020.0,0.116751]
[1759210478169,0.79751207,114030.0,114020.0,0.130281]
[1759210478859,0.42216096,114030.0,114020.0,0.130281]
[1759210479163,1.22124096,114030.0,114020.0,0.130281]
[1759210479366,1.30888426,114030.0,114020.0,0.130281]
[1759210480063,1.30888426,114030.0,114020.0,0.04263]
[1759210480263,1.58307197,114030.0,114020.0,0.04263]
[1759210481168,0.78399197,114030.0,114020.0,0.04263]
[1759210481362,0.79751197,114030.0,114020.0,0.04263]
[1759210485471,1.59643197,114030.0,114020.0,0.04263]
[1759210488574,1.57524101,114030.0,114020.0,0.04263]
[1759210494779,1.21444101,114030.0,114020.0,0.04263]
[1759210494978,1.57524101,114030.0,114020.0,0.04263]
[1759210495278,1.21444101,114030.0,114020.0,0.04263]
[1759210495479,1.57524101,114030.0,114020.0,0.04263]
[1759210496182,1.57524101,114030.0,114020.0,0.0291]
[1759210496382,1.5752889,114030.0,114020.0,0.0291]
[1759210496783,1.3010533,114030.0,114020.0,0.0291]
[1759210496981,1.5752889,114030.0,114020.0,0.0291]
[1759210499181,1.9752889,114030.0,114020.0,0.0291]
[1759210500381,1.99648082,114030.0,114020.0,0.0291]
[1759210506380,2.27071642,114030.0,114020.0,0.0291]
[1759210506582,1.87071642,114030.0,114020.0,0.0291]
[1759210506887,1.87071642,114030.0,114020.0,0.007]
[1759210515195,1.87071642,114030.0,114020.0,0.02959]
[1759210515901,1.59648082,114030.0,114020.0,0.02959]
[1759210519698,2.27071642,114030.0,114020.0,0.007]
[1759210521802,1.99648082,114030.0,114020.0,0.007]
[1759210522804,2.27071642,114030.0,114020.0,0.007]
[1759210528310,1.72224522,114030.0,114020.0,0.02824]
[1759210528609,2.27071642,114030.0,114020.0,0.007]
[1759210528810,1.72224522,114030.0,114020.0,0.007]
[1759210529012,2.27071642,114030.0,114020.0,0.007]
[1759210539616,1.87071642,114030.0,114020.0,0.007]
[1759210541019,1.86999642,114030.0,114020.0,0.007]
[1759210543316,1.07179642,114030.0,114020.0,0.007]
[1759210543522,1.86999642,114030.0,114020.0,0.007]
[1759210544422,1.07179642,114030.0,114020.0,0.007]
[1759210544622,1.86999642,114030.0,114020.0,0.007]
[1759210548928,1.59576082,114030.0,114020.0,0.02824]
[1759210549228,1.59576082,114030.0,114020.0,0.4034072]
[1759210550218,1.59576082,114030.0,114020.0,0.1291716]
[1759210550418,1.59576082,114030.0,114020.0,0.4034072]
[1759210550929,1.59576082,114030.0,114020.0,0.1291716]
[1759210551131,1.59576082,114030.0,114020.0,0.4034072]
[1759210554734,1.59576082,114030.0,114020.0,0.1291716]
[1759210555233,0.79756082,114030.0,114020.0,0.1291716]
[1759210555427,1.59572082,114030.0,114020.0,0.1291716]
[1759210556134,1.59572082,114030.0,114020.0,0.4034072]
[1759210557837,1.59572082,114030.0,114020.0,0.1158916]
[1759210558331,1.59568126,114030.0,114020.0,0.1158916]
[1759210562436,1.32148522,114030.0,114020.0,0.1158916]
[1759210562736,1.59568126,114030.0,114020.0,0.1158916]
[1759210568740,0.79752126,114030.0,114020.0,0.1158916]
[1759210569038,1.59560126,114030.0,114020.0,0.1158916]
[1759210569937,1.59560126,114030.0,114020.0,0.02824]
[1759210583647,1.32140522,114030.0,114020.0,0.02824]
[1759210583848,1.59560126,114030.0,114020.0,0.02824]
[1759210585047,0.79752126,114030.0,114020.0,0.1158915]
[1759210585243,1.59552126,114030.0,114020.0,0.1290615]
[1759210586646,0.52332522,114030.0,114020.0,0.1290615]
[1759210586949,1.32132522,114030.0,114020.0,0.1290615]
[1759210588250,1.59552126,114030.0,114020.0,0.1290615]
[1759210592054,1.59552126,114030.0,114020.0,0.04141]
[1759210595757,0.52332522,114030.0,114020.0,0.04141]
[1759210595958,1.59544126,114030.0,114020.0,0.1290617]
[1759210598258,1.32124522,114030.0,114020.0,0.1290617]
[1759210598458,1.59544126,114030.0,114020.0,0.1290617]
[1759210600267,0.52332522,114030.0,114020.0,0.1290617]
[1759210600469,0.50980522,114030.0,114020.0,0.40325774]
[1759210600766,0.4886133,114030.0,114020.0,0.80325774]
[1759210601766,0.4886133,114030.0,114020.0,0.40325774]
[1759210602568,0.40097,114030.0,114020.0,0.40325774]
[1759210605166,0.488614,114030.0,114020.0,0.40325774]
[1759210605570,0.50981072,114030.0,114020.0,0.40325774]
[1759210606073,0.42216672,114030.0,114020.0,0.40325774]
[1759210607769,0.04017,114030.0,114020.0,0.80325774]
[1759210607967,0.00274656,114030.0,114020.0,0.86638805]
[1759210608274,0.02171,114040.0,114030.0,0.1008098]
[1759210608474,0.02171,114040.0,114030.0,0.39732584]
[1759210608674,0.02171,114040.0,114030.0,0.46045615]
[1759210609174,0.1093464,114040.0,114030.0,0.79732584]
[1759210609578,0.1093464,114040.0,114030.0,0.80232584]
[1759210609873,0.1313464,114040.0,114030.0,0.86945615]
[1759210610270,0.1313464,114040.0,114030.0,0.80632584]
[1759210611178,0.1313464,114040.0,114030.0,1.60408584]
[1759210612679,0.022,114040.0,114030.0,1.60408584]
[1759210613677,0.1096363,114040.0,114030.0,1.60408584]
[1759210615378,0.022,114040.0,114030.0,1.60408584]
[1759210620275,0.022,114040.0,114030.0,1.3298898]
[1759210620478,0.022,114040.0,114030.0,1.60395088]
[1759210628599,0.1096364,114040.0,114030.0,1.60395088]
[1759210629689,0.022,114040.0,114030.0,1.87801196]
[1759210629885,0.022,114040.0,114030.0,1.60395088]
[1759210630085,0.022,114040.0,114030.0,1.87801196]
[1759210632997,0.022,114040.0,114030.0,1.60395088]
[1759210633497,0.1096364,114040.0,114030.0,1.60395088]
[1759210637188,0.1096364,114040.0,114030.0,1.66708119]
[1759210642301,0.022,114040.0,114030.0,1.66708119]
[1759210647396,0.022,114040.0,114030.0,1.39302011]
[1759210647601,0.022,114040.0,114030.0,1.66708119]
[1759210654601,0.022,114040.0,114030.0,1.94114227]
[1759210657107,0.00774834,114040.0,114030.0,1.94114227]
[1759210659405,0.00774834,114040.0,114030.0,1.54114227]
[1759210661212,0.09538454,114040.0,114030.0,1.17944139]
[1759210661413,0.38274562,114040.0,114030.0,1.17944139]
[1759210662413,0.40454562,114040.0,114030.0,0.90538031]
[1759210662615,0.40454562,114040.0,114030.0,1.17944139]
[1759210663114,0.40454562,114040.0,114030.0,1.26708529]
[1759210667116,0.04284834,114040.0,114030.0,1.26708529]
[1759210667318,0.31690942,114040.0,114030.0,1.26708529]
[1759210668427,0.30360942,114040.0,114030.0,1.26708529]
[1759210670024,0.30360942,114040.0,114030.0,0.99302421]
[1759210670224,0.02954834,114040.0,114030.0,1.26708529]
[1759210675921,0.00774834,114040.0,114030.0,1.26708529]
[1759210677521,0.00774834,114040.0,114030.0,1.54114637]
[1759210677727,0.00774834,114040.0,114030.0,1.26708529]
[1759210677924,0.72736814,114050.0,114040.0,0.1233062]
[1759210678125,0.72736814,114050.0,114040.0,0.39736728]
[1759210678523,0.72736814,114050.0,114040.0,0.67142836]
[1759210679726,0.45330706,114050.0,114040.0,0.67142836]
[1759210679927,0.72736814,114050.0,114040.0,0.67142836]
[1759210680120,0.81499664,114050.0,114040.0,0.67142836]
[1759210680321,0.54093556,114050.0,114040.0,0.39735876]
[1759210681527,0.1088485,114050.0,114040.0,0.75815876]
[1759210684424,0.1215585,114050.0,114040.0,1.18073]
[1759210684628,0.46718564,114050.0,114040.0,1.2683664]
[1759210685131,0.19313308,114050.0,114040.0,1.2683664]
[1759210685631,0.19313308,114050.0,114040.0,1.54241896]
[1759210685833,0.19313308,114050.0,114040.0,1.55519896]
[1759210686434,0.21410205,114050.0,114040.0,1.55519896]
[1759210695639,0.48815461,114050.0,114040.0,0.02289]
[1759210695842,0.48815461,114050.0,114040.0,0.81981]
[1759210696349,0.21410205,114050.0,114040.0,0.81981]
[1759210696649,0.48815461,114050.0,114040.0,0.81981]
[1759210705158,0.48815461,114050.0,114040.0,0.81973]
[1759210706359,0.48815461,114050.0,114040.0,0.02289]
[1759210706558,0.48815461,114050.0,114040.0,0.81969]
[1759210707358,0.48815461,114050.0,114040.0,0.02289]
[1759210707563,0.48815461,114050.0,114040.0,0.81969]
[1759210708260,0.48815461,114050.0,114040.0,0.02289]
[1759210708456,0.48815461,114050.0,114040.0,0.81969]
[1759210710264,0.48815716,114050.0,114040.0,0.81969]
[1759210719065,0.2141046,114050.0,114040.0,0.81969]
[1759210719370,0.48815716,114050.0,114040.0,0.81969]
[1759210724480,0.48815716,114050.0,114040.0,0.02289]
[1759210724778,0.48815716,114050.0,114040.0,0.81953]
[1759210725580,0.46718564,114050.0,114040.0,0.81953]
[1759210725774,0.48817824,114050.0,114040.0,0.81953]
[1759210726280,0.48817824,114050.0,114040.0,0.81949]
[1759210740286,0.4882304,114050.0,114040.0,0.81949]
[1759210741191,0.4882304,114050.0,114040.0,0.8324]
[1759210742888,0.4882304,114050.0,114040.0,0.81929]
[1759210743088,1.12313512,114050.0,114040.0,0.02289]
[1759210743388,0.8490304,114050.0,114040.0,0.02289]
[1759210744693,1.12313512,114050.0,114040.0,0.02289]
[1759210744888,0.1241362,114040.0,114030.0,0.08595031]
[1759210745196,1.05413824,114040.0,114030.0,0.02282]
[1759210745488,0.1241439,114030.0,114020.0,0.38362]
[1759210745688,0.41922862,114030.0,114020.0,0.38362]
[1759210745886,0.1451239,114030.0,114020.0,0.38362]
[1759210746086,0.41922862,114030.0,114020.0,0.38362]
[1759210746292,0.40622862,114030.0,114020.0,0.38362]
[1759210746892,0.39422862,114030.0,114020.0,0.39962]
[1759210747696,0.39122862,114030.0,114020.0,0.38362]
[1759210754288,0.37024862,114030.0,114020.0,0.38362]
[1759210755999,0.0961439,114030.0,114020.0,0.02282]
[1759210756498,0.37024862,114030.0,114020.0,0.02282]
[1759210756899,0.0961439,114030.0,114020.0,0.29692472]
[1759210757195,0.37024862,114030.0,114020.0,0.02282]
[1759210757389,0.37024862,114030.0,114020.0,0.29692472]
[1759210757789,0.0961439,114030.0,114020.0,0.02282]
[1759210757995,0.37024862,114030.0,114020.0,0.02282]
[1759210758198,0.0961439,114030.0,114020.0,0.29692472]
[1759210758397,0.37024862,114030.0,114020.0,0.75814622]
[1759210758900,0.35629862,114030.0,114020.0,0.75814622]
[1759210759900,0.02255,114030.0,114020.0,1.03225094]
[1759210760789,0.29665472,114030.0,114020.0,1.03225094]
[1759210762200,0.02255,114030.0,114020.0,1.03225094]
[1759210765702,0.02255,114030.0,114020.0,0.4840415]
[1759210765904,0.02255,114030.0,114020.0,1.03225094]
[1759210767006,0.02298,114040.0,114030.0,0.1243439]
[1759210767303,0.4562918,114050.0,114040.0,0.1243362]
[1759210767503,0.47734532,114050.0,114040.0,0.31080472]
[1759210767702,0.2032406,114050.0,114040.0,0.31080472]
[1759210767905,0.47734532,114050.0,114040.0,0.31080472]
[1759210768106,0.4562918,114050.0,114040.0,0.31080472]
[1759210768401,0.47734592,114050.0,114040.0,0.31080472]
[1759210769104,0.4562918,114050.0,114040.0,0.31080472]
[1759210769403,0.47734606,114050.0,114040.0,0.31080472]
[1759210769608,0.48434606,114050.0,114040.0,0.31380472]
[1759210770406,0.4632918,114050.0,114040.0,0.31380472]
[1759210770906,0.19618708,114050.0,114040.0,0.31680472]
[1759210771106,0.4702918,114050.0,114040.0,0.31680472]
[1759210771309,0.4702918,114050.0,114040.0,0.0427]
[1759210771607,0.4702918,114050.0,114040.0,0.31680472]
[1759210774308,0.4702918,114050.0,114040.0,0.0427]
[1759210774502,0.4702918,114050.0,114040.0,0.31680472]
[1759210774702,0.4831818,114050.0,114040.0,0.02873]
[1759210782605,0.20907708,114050.0,114040.0,0.02873]
[1759210782902,0.4831818,114050.0,114040.0,0.02873]
[1759210785106,0.50424192,114050.0,114040.0,0.02873]
[1759210785609,0.4831818,114050.0,114040.0,0.02873]
[1759210786108,0.50424391,114050.0,114040.0,0.02873]
[1759210786610,0.23013919,114050.0,114040.0,0.02873]
[1759210786802,0.4831818,114050.0,114040.0,0.02873]
[1759210787109,0.504247,114050.0,114040.0,0.02873]
[1759210787610,0.4831818,114050.0,114040.0,0.02873]
[1759210788310,0.50425081,114050.0,114040.0,0.02873]
[1759210795612,0.50425081,114050.0,114040.0,0.1163661]
[1759210796915,0.23014609,114050.0,114040.0,0.1163661]
[1759210797216,0.50425081,114050.0,114040.0,0.1163661]
[1759210800717,0.23014609,114050.0,114040.0,0.1163661]
[1759210800915,0.50425081,114050.0,114040.0,0.1163661]
[1759210802215,0.50425801,114050.0,114040.0,0.1163661]
[1759210804211,0.50428111,114050.0,114040.0,0.1163661]
[1759210805617,0.23016919,114050.0,114040.0,0.1163661]
[1759210805814,0.50428111,114050.0,114040.0,0.1163661]
[1759210809311,0.50427711,114050.0,114040.0,0.1163661]
[1759210809508,0.50427711,114050.0,114040.0,0.1291561]
[1759210809915,0.50427711,114050.0,114040.0,0.04152]
[1759210810122,0.23016519,114050.0,114040.0,0.04152]
[1759210810319,0.50427711,114050.0,114040.0,0.04152]
[1759210813628,0.50427711,114050.0,114040.0,0.1291561]
[1759210814029,0.23016519,114050.0,114040.0,0.1291561]
[1759210814332,0.50427711,114050.0,114040.0,0.1291561]
[1759210817825,0.21727519,114050.0,114040.0,0.76406802]
[1759210818023,0.12964669,114050.0,114040.0,1.16406802]
[1759210818222,0.10855458,114050.0,114040.0,1.16406802]
[1759210818831,0.19618308,114050.0,114040.0,1.16406802]
[1759210819029,0.19618308,114050.0,114040.0,1.07643192]
[1759210820735,0.19618308,114050.0,114040.0,1.16406812]
[1759210825521,0.05589223,114050.0,114040.0,1.22719843]
[1759210825729,0.05589223,114050.0,114040.0,1.16406812]
[1759210826034,0.014,114050.0,114040.0,1.24282199]
[1759210827031,0.08361895,114050.0,114040.0,1.24282199]
[1759210827231,0.014,114050.0,114040.0,1.24282199]
[1759210827633,0.12822624,114060.0,114050.0,0.1233485]
[1759210827821,0.10540624,114060.0,114050.0,1.62031968]
[1759210828026,0.01778464,114060.0,114050.0,1.62031968]
[1759210828237,0.0876176,114070.0,114060.0,0.01395]
[1759210828428,0.1104376,114070.0,114060.0,0.4841408]
[1759210829929,0.38454952,114070.0,114060.0,0.4841408]
[1759210831039,0.1214376,114070.0,114060.0,0.4871408]
[1759210831238,0.4645395,114070.0,114060.0,0.4871408]
[1759210832537,0.4745395,114070.0,114060.0,0.4901408]
[1759210832943,0.20982035,114070.0,114060.0,0.76425272]
[1759210836042,0.20982035,114070.0,114060.0,0.4901408]
[1759210837338,0.12220275,114070.0,114060.0,0.4901408]
[1759210838545,0.12220275,114070.0,114060.0,0.76425272]
[1759210838941,0.09938275,114070.0,114060.0,0.76425272]
[1759210839341,0.09938275,114070.0,114060.0,1.16425272]
[1759210839537,0.09938275,114070.0,114060.0,0.76425272]
[1759210839943,0.09938275,114070.0,114060.0,0.4901408]
[1759210840243,0.09938275,114070.0,114060.0,0.76425272]
[1759210840647,0.09938275,114070.0,114060.0,0.4901408]
[1759210840848,0.09938275,114070.0,114060.0,0.76425272]
[1759210841456,0.07838275,114070.0,114060.0,1.22127198]
[1759210841656,0.007,114070.0,114060.0,1.22427198]
[1759210841848,0.01618476,114070.0,114060.0,0.82427198]
[1759210842243,0.01618476,114070.0,114060.0,0.82127198]
[1759210842448,0.00918476,114070.0,114060.0,0.82127198]
[1759210842649,0.014,114070.0,114060.0,0.82627198]
[1759210845959,0.02350211,114070.0,114060.0,0.82627198]
[1759210847956,0.04632211,114070.0,114060.0,0.55216006]
[1759210848158,0.04632211,114070.0,114060.0,0.82627198]
[1759210852055,0.04632211,114070.0,114060.0,0.55216006]
[1759210852261,0.04632211,114070.0,114060.0,0.76325272]
[1759210854262,0.02350211,114070.0,114060.0,0.76325272]
[1759210855364,0.02350211,114070.0,114060.0,0.82627198]
[1759210857965,0.04616211,114070.0,114060.0,0.82627198]
[1759210858164,0.04616211,114070.0,114060.0,1.18707198]
[1759210858557,0.02350211,114070.0,114060.0,1.18707198]
[1759210858754,0.02350211,114070.0,114060.0,1.12405272]
[1759210858957,0.02350211,114070.0,114060.0,1.18707198]
[1759210862268,0.02350211,114070.0,114060.0,1.46082276]
[1759210865463,0.00925505,114070.0,114060.0,1.46082276]
[1759210865666,0.02266,114080.0,114070.0,0.1223731]
[1759210865873,0.30594846,114080.0,114070.0,1.55454445]
[1759210866766,0.30594846,114080.0,114070.0,1.56054445]
[1759210867068,0.32594846,114080.0,114070.0,1.34963236]
[1759210867271,0.31194846,114080.0,114070.0,1.61956371]
[1759210867873,0.30894846,114080.0,114070.0,1.61956371]
[1759210868461,0.30894846,114080.0,114070.0,1.61756371]
[1759210868666,0.31294846,114080.0,114070.0,1.62056371]
[1759210869472,0.40055376,114080.0,114070.0,1.62056371]
[1759210870772,0.12662241,114080.0,114070.0,1.62056371]
[1759210870976,0.40055376,114080.0,114070.0,1.62056371]
[1759210871372,0.40055376,114080.0,114070.0,1.34663236]
[1759210871570,0.40055376,114080.0,114070.0,1.62056371]
[1759210875471,0.38630693,114080.0,114070.0,1.62056371]
[1759210885486,0.3720601,114080.0,114070.0,1.62056371]
[1759210887284,0.39314575,114080.0,114070.0,1.55754445]
[1759210892893,0.3720601,114080.0,114070.0,1.55754445]
[1759210893093,0.39314738,114080.0,114070.0,1.55754445]
[1759210893390,0.3720601,114080.0,114070.0,1.62056371]
[1759210897600,0.35781327,114080.0,114070.0,1.62056371]
[1759210898094,0.36710054,114080.0,114070.0,1.62056371]
[1759210899398,0.09316919,114080.0,114070.0,1.62056371]
[1759210899599,0.36710054,114080.0,114070.0,1.62056371]
[1759210900800,0.36710054,114080.0,114070.0,1.34663236]
[1759210901201,0.36710054,114080.0,114070.0,1.62056381]
[1759210901900,0.36710054,114080.0,114070.0,1.34663246]
[1759210902103,0.36710054,114080.0,114070.0,1.62056381]
[1759210902601,0.36710054,114080.0,114070.0,1.34663246]
[1759210902803,0.36710054,114080.0,114070.0,1.62056381]
[1759210903198,0.09316919,114080.0,114070.0,1.62056381]
[1759210903402,0.36710054,114080.0,114070.0,1.62056381]
[1759210904906,0.09316919,114080.0,114070.0,1.62056381]
[1759210905205,0.36710054,114080.0,114070.0,1.62056381]
[1759210906607,0.09316919,114080.0,114070.0,1.62056381]
[1759210906902,0.36710054,114080.0,114070.0,1.62056381]
[1759210907605,0.35285371,114080.0,114070.0,1.62056381]
[1759210909106,0.37082412,114080.0,114070.0,1.62056381]
[1759210912002,0.37082412,114080.0,114070.0,1.34663246]
[1759210912202,0.37082412,114080.0,114070.0,1.62056381]
[1759210912906,0.09689277,114080.0,114070.0,1.62056381]
[1759210913104,0.37082412,114080.0,114070.0,1.62056381]
[1759210917610,0.35657729,114080.0,114070.0,1.62056381]
[1759210917904,0.36577115,114080.0,114070.0,1.62056381]
[1759210918908,0.36577115,114080.0,114070.0,1.34663246]
[1759210919106,0.36577115,114080.0,114070.0,1.62056381]
[1759210921308,0.00919386,114080.0,114070.0,1.34663246]
[1759210921508,0.27393135,114080.0,114070.0,1.62056381]
[1759210921706,0.28324075,114080.0,114070.0,1.62056381]
[1759210924210,0.0093094,114080.0,114070.0,1.62053283]
[1759210924406,0.43259601,114090.0,114080.0,0.01341]
[1759210924710,0.47546013,114090.0,114080.0,0.03445]
[1759210924907,0.47546013,114090.0,114080.0,0.1220555]
[1759210926313,0.47546013,114090.0,114080.0,0.03445]
[1759210926512,0.48467966,114090.0,114080.0,0.03445]
[1759210926809,0.48767966,114090.0,114080.0,0.03545]
[1759210927312,0.48567966,114090.0,114080.0,0.03645]
[1759210927910,0.48467966,114090.0,114080.0,0.03445]
[1759210928209,0.49167966,114090.0,114080.0,0.1250555]
[1759210928810,0.48467966,114090.0,114080.0,0.1220555]
[1759210929112,0.48667966,114090.0,114080.0,0.1250555]
[1759210931210,0.48667966,114090.0,114080.0,0.9226555]
[1759210939726,0.21277929,114090.0,114080.0,0.9226555]
[1759210940029,0.48667966,114090.0,114080.0,0.83505]
[1759210942735,0.48667966,114090.0,114080.0,0.9226555]
[1759210943035,0.21277929,114090.0,114080.0,0.9226555]
[1759210943231,0.48667966,114090.0,114080.0,0.9226555]
[1759210946634,0.21277929,114090.0,114080.0,0.9226555]
[1759210946828,0.48667966,114090.0,114080.0,0.9226555]
[1759210951638,0.21277929,114090.0,114080.0,0.9226555]
[1759210951832,0.48667966,114090.0,114080.0,0.9226555]
[1759210953137,0.48667966,114090.0,114080.0,1.2834555]
[1759210955436,0.21277929,114090.0,114080.0,1.55735587]
[1759210955637,0.19098929,114090.0,114080.0,1.55735587]
[1759210955844,0.01364,114070.0,114060.0,0.02199831]
[1759210956039,0.1227708,114060.0,114050.0,0.79712]
[1759210956339,0.75747117,114060.0,114050.0,0.81918]
[1759210956838,0.75747117,114060.0,114050.0,0.02206]
[1759210957034,1.03137154,114060.0,114050.0,0.02206]
[1759210957238,0.1227862,114040.0,114030.0,0.38286]
[1759210957432,0.38468657,114040.0,114030.0,1.15246]
[1759210958240,0.36668657,114040.0,114030.0,1.15246]
[1759210958446,0.43796598,114040.0,114030.0,1.15246]
[1759210958645,0.43596598,114040.0,114030.0,1.15246]
[1759210958841,0.43596598,114040.0,114030.0,0.38286]
[1759210959147,0.16206561,114040.0,114030.0,1.18002]
[1759210959339,0.43596598,114040.0,114030.0,1.18002]
[1759210959644,0.43596598,114040.0,114030.0,0.38286]
[1759210960444,0.44296598,114040.0,114030.0,0.38786]
[1759210963048,0.80376598,114040.0,114030.0,0.02706]
[1759210963746,0.80376598,114040.0,114030.0,0.005]
[1759210964344,0.1157938,114030.0,114020.0,0.02206]
[1759210964544,0.66359454,114030.0,114020.0,0.02206]
[1759210965147,0.67976133,114030.0,114020.0,0.02206]
[1759210965644,0.40586096,114030.0,114020.0,0.02206]
[1759210965837,0.41886096,114030.0,114020.0,0.02206]
[1759210966650,0.40586096,114030.0,114020.0,0.02206]
[1759210966850,0.43786096,114030.0,114020.0,0.02806]
[1759210969548,0.56951037,114030.0,114020.0,0.02806]
[1759210975258,0.56951037,114030.0,114020.0,0.04198]
[1759210975953,0.56951037,114030.0,114020.0,0.02806]
[1759210977055,0.43786096,114030.0,114020.0,0.4904316]
[1759210977257,0.43728096,114030.0,114020.0,0.40278]
[1759210978254,0.16338059,114030.0,114020.0,0.40278]
[1759210978458,0.43728096,114030.0,114020.0,0.40278]
[1759210981255,0.16338059,114030.0,114020.0,0.4904315]
[1759210981454,0.43728096,114030.0,114020.0,0.4904315]
[1759210982557,0.34357716,114030.0,114020.0,0.4904315]
[1759210982761,0.43122086,114030.0,114020.0,0.4904315]
[1759210983553,0.43122086,114030.0,114020.0,0.40278]
[1759210984260,0.43149012,114030.0,114020.0,0.40278]
[1759210986259,0.44455012,114030.0,114020.0,0.38886]
[1759210986561,0.46614219,114030.0,114020.0,0.38886]
[1759210986757,0.19197256,114030.0,114020.0,0.38886]
[1759210986958,0.46614219,114030.0,114020.0,0.38886]
[1759210987563,0.46614219,114030.0,114020.0,0.476509]
[1759210992967,0.46614219,114030.0,114020.0,0.38886]
[1759210994064,0.46614219,114030.0,114020.0,0.476508]
[1759210996260,0.46614219,114030.0,114020.0,0.489528]